{"text_format":"1","workbook":"xlsx","n_sheets":3,"sheets":["المنيو","الفاتوره","المبيعات"],"not_rendered":{"charts":0,"images":3,"macros":1,"external_links":2,"defined_names":10,"comments":0,"pivot_tables":0},"unopened":[],"bounds":{"document_bytes":16777216,"sheet_cells":100000,"rows_first":2000,"rows_last":500,"rows_between":2000,"halvings":0,"cell_chars":16384,"cell_head_chars":4096},"cells_cut":0,"cells_raw":0,"read":"whole","date_system":"1900"}

{"sheet":"المنيو","index":0,"n_rows":121,"n_cols":5,"rows_kept":121,"cut":false,"hidden":false,"merged":[]}
[]
[]
[]
[]
[]
[]
[]
[]
[]
[null,"Item Code","Item Name","Item Unit","Item Category "]
[null,"البيتزا","بيتزا مشكل جبن","صغير",20]
[null,"البيتزا","فطيرة بسطرمة","وسط",25]
[null,"السلطات","سلطة كول سلو","كبير",10]
[null,"السلطات","سلطة خضراء","وسط",7]
[null,"السلطات","مخلل","وسط",5]
[null,"المقبلات","فرايز تشيز جريفي","صغير",20]
[null,"المقبلات","رول هوت دوج","وسط",20]
[null,"المقبلات","فرايد تشيز","كبير",15]
[null,"المقبلات","باكيت بطاطس محمرة","صغير",10]
[null,"المقبلات","كريب ميكس جبن","كبير",25]
[null,"المقبلات","كريب كيري","صغير",20]
[null,"المقبلات","كريب لحم مفروم","وسط",23]
[null,"المقبلات","كريب سجق","وسط",23]
[null,"المقبلات","كريب بسطرمة","صغير",25]
[null,"المقبلات","كريب مشكل لحوم","كبير",28]
[null,"المقبلات","كريب مشكل شاورما","صغير",28]
[null,"المقبلات","كريب فاهيتا دجاج","وسط",27]
[null,"المقبلات","كريب سوسة","كبير",27]
[null,"المقبلات","كريب شاورما لحم","صغير",27]
[null,"المقبلات","كريب مشروم","وسط",23]
[null,"المقبلات","كريب تونة","وسط",25]
[null,"المقبلات","كريب جمبري","صغير",40]
[null,"المقبلات","كريب سبيط","كبير",35]
[null,"المقبلات","كريب مأكولات بحرية","كبير",45]
[null,"البيتزا","بيتزا جبنة","صغير",27]
[null,"البيتزا","بيتزا مارجريتا","وسط",23]
[null,"البيتزا","بيتزا مشكل جبن","كبير",25]
[null,"البيتزا","بيتزا دجاج و خضروات","صغير",40]
[null,"البيتزا","بيتزا دجاج باربيكيو","وسط",35]
[null,"البيتزا","بيتزا فاهيتا دجاج","كبير",45]
[null,"البيتزا","بيتزا سوسة","صغير",27]
[null,"البيتزا","بيتزا سلامي","وسط",23]
[null,"البيتزا","بيتزا سجق","كبير",25]
[null,"البيتزا","بيتزا بسطرمة","صغير",40]
[null,"البيتزا","بيتزا سوسيس","وسط",35]
[null,"البيتزا","بيتزا مشكل لحوم","كبير",45]
[null,"البيتزا","بيتزا سوبر سوبريم","صغير",27]
[null,"البيتزا","بيتزا بولونيز","وسط",23]
[null,"البيتزا","بيتزا لحم رومي مدخن","كبير",25]
[null,"البيتزا","بيتزا تونة","صغير",40]
[null,"البيتزا","بيتزا أنشوجة","وسط",35]
[null,"البيتزا","بيتزا جمبري","كبير",45]
[null,"البيتزا","بيتزا مشروم","صغير",27]
[null,"البيتزا","بيتزا مأكولات بحرية","وسط",23]
[null,"البيتزا","بيتزا إبن حميدو لحوم","كبير",25]
[null,"الفطائر","فطيرة جبنة رومي","صغير",35]
[null,"الفطائر","فطيرة خضروات","وسط",45]
[null,"الفطائر","فطيرة جبنة كيري","كبير",45]
[null,"الفطائر","فطيرة مشكل جبن","صغير",27]
[null,"الفطائر","فطيرة سوسيس","وسط",23]
[null,"الفطائر","فطيرة سجق","كبير",25]
[null,"الفطائر","فطيرة بسطرمة","صغير",40]
[null,"الفطائر","فطيرة لحم مفروم","وسط",35]
[null,"الفطائر","فطيرة مشكل لحوم","كبير",45]
[null,"الفطائر","فطيرة دجاج","صغير",27]
[null,"الفطائر","فطيرة فاهيتا دجاج","وسط",23]
[null,"الفطائر","فطيرة سوسة","كبير",25]
[null,"الفطائر","فطيرة تونة","صغير",40]
[null,"الفطائر","فطيرة مشروم","وسط",35]
[null,"الفطائر","فطيرة أنشوجة","كبير",45]
[null,"الفطائر","فطيرة جمبري","صغير",27]
[null,"الفطائر","فطيرة سبيط","وسط",45]
[null,"الفطائر","فطيرة مأكولات بحرية","كبير",27]
[null,"المكرونة","مكرونة فيجي فرن","صغير",25]
[null,"المكرونة","مكرونة بولونيز","وسط",40]
[null,"المكرونة","مكرونة سجق","كبير",35]
[null,"المكرونة","مكرونة بسطرمة","صغير",45]
[null,"المكرونة","مكرونة مشكل لحوم","وسط",27]
[null,"المكرونة","مكرونة ستروجانوف بيف","كبير",23]
[null,"المكرونة","مكرونة مشكل جبن","صغير",25]
[null,"المكرونة","مكرونة دجاج و خضروات","وسط",40]
[null,"المكرونة","مكرونة فاهيتا دجاج","كبير",35]
[null,"المكرونة","نجرسكو","صغير",45]
[null,"المكرونة","مكرونة سوسة دجاج","وسط",27]
[null,"المكرونة","مكرونة جمبريتو كريمة","كبير",25]
[null,"المكرونة","مكرونة جمبريتو ليمون","كبير",40]
[null,"المكرونة","مكرونة جمبريتو بينك","صغير",35]
[null,"المكرونة","مكرونة مأكولات بحرية","وسط",25]
[null,"المكرونة","مكرونة تونة","كبير",40]
[null,"الإضافات","إضافة بسطرمة","كبير",40]
[null,"الإضافات","إضافة لحم مفروم","كبير",40]
[null,"الإضافات","إضافة سجق","كبير",40]
[null,"الإضافات","إضافة سوسيس","كبير",40]
[null,"الإضافات","إضافة جبنة موتزاريلا","كبير",40]
[null,"الإضافات","إضافة جبنة رومي","كبير",40]
[null,"الإضافات","إضافة جبنة شيدر","كبير",40]
[null,"الإضافات","إضافة جبنة كيري","كبير",40]
[null,"الإضافات","إضافة كابوريا","كبير",40]
[null,"الإضافات","إضافة جمبري","كبير",40]
[null,"الإضافات","إضافة سبيط","كبير",40]
[null,"الكريب الحلو","كريب شوكولاتة","كريب",20]
[null,"الكريب الحلو","كريب كراميل","كريب",20]
[null,"الكريب الحلو","كريب فواكه","كريب",28]
[null,"الكريب الحلو","كريب تفاح مع قرفة و كراميل","كريب",28]
[null,"الكريب الحلو","كريب موز و شوكولاتة","كريب",25]
[null,"الكريب الحلو","كريب أوريو و شوكولاتة","كريب",25]
[null,"الفطائر الحلوة","فطيرة سكر","وسط",20]
[null,"الفطائر الحلوة","فطيرة كاسترد","وسط",20]
[null,"الفطائر الحلوة","فطيرة بغاشة","وسط",28]
[null,"الفطائر الحلوة","فطيرة ملوكي","وسط",28]
[null,"الفطائر الحلوة","فطيرة قشطة و عسل","وسط",25]
[null,"الفطائر الحلوة","فطيرة بندق","وسط",25]
[null,"الفطائر الحلوة","فطيرة فستق","كبير",20]
[null,"الفطائر الحلوة","فطيرة مشكل مكسرات","كبير",20]
[null,"الفطائر الحلوة","فطيرة شوكولاتة بالبندق","كبير",28]
[null,"الفطائر الحلوة","فطيرة ميكس شوكولاتة","وسط",28]
[null,"الفطائر الحلوة","فطيرة موز","وسط",25]
[null,"الفطائر الحلوة","فطيرة تفاح و قرفة","وسط",25]
[null,"الفطائر الحلوة","فطيرة أناناس","وسط",20]
[null,"الفطائر الحلوة","فطيرة مشكل فواكه","وسط",20]
[null,"الفطائر الحلوة","فطيرة إبن حميدو المميزة","وسط",28]

{"sheet":"الفاتوره","index":1,"n_rows":31,"n_cols":7,"rows_kept":31,"cut":false,"hidden":false,"merged":[]}
[]
[]
[]
[]
[]
[]
[]
[]
[]
[null,"التصنيف","اسم الصنف","الحجم / النوع","السعر","الكمية","القيمة"]
[null,"المقبلات","كريب ميكس جبن","كبير",25,1,{"$f":"F11*E11","v":25}]
[null,"المقبلات","كريب لحم مفروم","وسط",23,2,{"$f":"F12*E12","v":46}]
[null,null,null,null,null,null,0]
[null,null,null,null,null,null,0]
[null,null,null,null,null,null,0]
[null,null,null,null,null,null,0]
[null,null,null,null,null,null,0]
[null,null,null,null,null,null,0]
[null,null,null,null,null,null,0]
[null,null,null,null,null,null,0]
[null,null,null,null,null,null,0]
[null,null,null,null,null,null,0]
[null,null,null,null,null,null,0]
[null,null,null,null,null,null,{"$f":"F24*E24","v":0}]
[null,null,null,null,null,null,0]
[null,null,null,null,null,null,0]
[null,null,null,null,null,null,0]
[null,null,null,null,null,null,0]
[null,null,null,null,null,"الاجمالي",{"$f":"SUM(G11:G28)","v":71}]
[null,null,null,null,null,"المدفوع",100]
[null,null,null,null,null,"الباقي",{"$f":"G30-G29","v":29}]

{"sheet":"المبيعات","index":2,"n_rows":12,"n_cols":7,"rows_kept":12,"cut":false,"hidden":false,"merged":[]}
[]
[]
[]
[]
[]
[]
[]
[]
[]
[null,"التصنيف","اسم الصنف","الحجم / النوع","السعر","الكمية","القيمة"]
[null,"المقبلات","كريب ميكس جبن","كبير",25,1,{"$f":"F11*E11","v":25}]
[null,"المقبلات","كريب لحم مفروم","وسط",23,2,{"$f":"F12*E12","v":46}]